Cogmind - Beta 14 @@@ ROGUE MODE // 2024.11.15 @ 12:45:01 Player: Hinzy Result: Destroyed by RS-P0U(M) with Battle Cannon Performance ------------- Evolutions (1) 500 Regions Visited (4) 800 Robots Destroyed (40) 200 Value Destroyed (841) 841 Prototype IDs (3) 60 Alien Tech Used (0) 0 Bonus (-152) -152 TOTAL SCORE: 2249 Bonus ------- Met Imprinter 300 Was Imprinted 300 Friendly Fire -752 Cogmind --------- Core Integrity 0/400 Matter 274/300 Energy 240/240 System Corruption 1% Temperature Cool (0) Movement Walking (140) Location -7/Zion Parts ------- > --- POWER (1) -------- Nuclear Core > --- PROPULSION (3) --- Makeshift Leg Combat Airjet > --- UTILITY (3) ------ Structural Scanner Terrain Scanner > --- WEAPON (2) ------- (None) > --- INVENTORY (5) ---- Improved Ion Engine Makeshift Leg Launcher Guidance Computer EM Pulse Gun Slug Cannon Peak State ------------ > --- POWER ------------ Nuclear Core > --- PROPULSION ------- Combat Airjet Combat Airjet Makeshift Hover Unit > --- UTILITY ---------- Structural Scanner Terrain Scanner Improved Light Armor Plating > --- WEAPON ----------- Beamcaster Phasing Sabre > --- INVENTORY -------- Improved Ion Engine Launcher Guidance Computer EM Pulse Gun Slug Cannon [Rating: 35] Favorites ----------- Power Improved Ion Engine Engine Improved Ion Engine Power Core Nuclear Core Propulsion Combat Airjet Treads Light Treads Leg Aluminum Leg Wheel Wheel Hover Unit Combat Airjet Utility Large Storage Unit Device Structural Scanner Storage Large Storage Unit Protection Improved Light Armor Plating Weapon Phasing Sabre Energy Gun Beamcaster Ballistic Gun Light Assault Rifle Launcher Mini Grenade Launcher Slashing Weapon Phasing Sabre Build | -11 -10 -9 -9 -7 ------- Run | Yrd Mat Mat Min Zio Slots Evolved 2 | . . 2 . . Power . | . . . . . Propulsion 1 | . . 1 . . Utility 1 | . . 1 . . Weapon . | . . . . . Parts Attached 38 | 3 7 11 8 9 Power 4 | . 1 2 . 1 Engine 3 | . 1 2 . . Core 1 | . . . . 1 Reactor . | . . . . . Propulsion 17 | 2 2 6 4 3 Treads 7 | 2 2 3 . . Leg 5 | . . 2 1 2 Wheel 2 | . . 1 1 . Hover 3 | . . . 2 1 Flight . | . . . . . Utility 10 | 1 3 1 2 3 Device 8 | 1 2 1 2 2 Storage 1 | . 1 . . . Processor . | . . . . . Hackware . | . . . . . Protection 1 | . . . . 1 Artifact . | . . . . . Weapon 7 | . 1 2 2 2 Energy Gun 4 | . 1 2 . 1 Energy Cannon . | . . . . . Ballistic Gun 1 | . . . 1 . Ballistic Cannon . | . . . . . Launcher 1 | . . . 1 . Special Weapon . | . . . . . Impact Weapon . | . . . . . Slashing Weapon 1 | . . . . 1 Piercing Weapon . | . . . . . Special Melee Weapon . | . . . . . Unidentified Prototypes 1 | . . . . 1 Parts Lost 12 | . . 4 4 4 Power 1 | . . 1 . . Propulsion 5 | . . 2 1 2 Utility 3 | . . . 2 1 Weapon 3 | . . 1 1 1 Highest Loss Streak 4 | . . 3 2 4 To Critical Strikes . | . . . . . Average Slot Usage (%) 98 | . 100 91 98 98 Engine 10 | . 14 8 11 10 Treads 4 | . 28 22 . . Leg 9 | . . 6 14 10 Hover 17 | . . . 13 22 Device 21 | . 14 21 20 22 Storage 11 | . 14 11 11 10 Energy Gun 12 | . 25 21 11 10 Slashing Weapon 7 | . . . . 10 Peak Build Rating 35 | 7 10 12 20 35 Average Rating 23 | 6 7 11 16 27 On Entrance 10 | 6 7 10 12 19 Naked Turns . | . . . . . Heaviest Build 38 | 14 29 31 31 38 Greatest Support 60 | 40 40 60 24 36 Greatest Overweight (x) 3 | . . 1 3 1 Average Overweight (x) . | . . . 1 . Largest Inventory Capacity 15 | 8 15 15 15 15 Average Capacity 14 | 8 14 15 15 14 Most Carried 12 | 6 11 12 9 11 Average Carried 8 | 6 7 9 8 8 Final Capacity 15 | 8 15 15 15 5 Final Carried 11 | 6 11 8 9 5 Class Distribution -------------------- 84% | Mutant 15% | Scavenger-Mutant Dominant Class ---------------- Mutant | -10/Materials Scavenger-Mutant | -9/Materials Mutant | -9/Mines Mutant | -7/Zion Resources | -11 -10 -9 -9 -7 ----------- Run | Yrd Mat Mat Min Zio Matter Collected 664 | 242 68 101 196 57 Remotely . | . . . . . Salvage Created 1382 | 121 480 541 108 132 Parts 91 | 7 29 25 12 18 Haulers Intercepted 2 | . 1 1 . . Recyclers Shooed 3 | 1 2 . . . Parts Field Recycled . | . . . . . Retrieved Matter . | . . . . . Parts Self-Destructed . | . . . . . Prevented . | . . . . . Kills | -11 -10 -9 -9 -7 ------- Run | Yrd Mat Mat Min Zio Combat Hostiles Destroyed 33 | . 8 10 15 . Guns 22 | . 8 10 4 . AOE 11 | . . . 11 . Classes Destroyed 11 | 3 2 2 3 1 Worker 2 | 1 . 1 . . Builder 1 | . . . 1 . Tunneler 3 | 2 1 . . . Hauler 2 | . 1 1 . . Recycler 2 | 1 1 . . . Watcher 1 | . . 1 . . Swarmer 3 | . . . 3 . Grunt 17 | . 8 8 1 . Sentry 2 | . . 2 . . Zionite 6 | . . . . 6 Assembled 11 | . . . 11 . Best Kill Streak 7 | 3 5 7 5 6 Combat Bots Only 6 | . 3 6 5 . Max Kills in Single Turn 3 | 1 1 2 3 1 Gunslinging 1 | . . 1 . . Exploded 3 | . . . 3 . Melee . | . . . . . Uniques/NPCs Destroyed 1 | . . . . 1 Imprinter (-7/Zion) Combat | -11 -10 -9 -9 -7 -------- Run | Yrd Mat Mat Min Zio Hostile Shots Fired 214 | . 34 89 28 63 Missed 73 | . 11 26 9 27 Damage Taken 2439 | . 265 758 603 813 Core 487 | . 73 93 170 151 Absorbed by Shields . | . . . . . Regen/Repaired (Parts) 252 | . . . . 252 Core Remaining (%) 85 | 100 70 . . . Volleys Fired 121 | 13 39 47 22 . Largest 2 | 2 2 2 2 . Hottest 90 | 70 90 90 70 . Shots Fired 225 | 26 78 88 33 . Gun 215 | 26 78 88 23 . Cannon . | . . . . . Launcher 10 | . . . 10 . Special . | . . . . . Kinetic 31 | 13 8 . 10 . Thermal 184 | 13 70 88 13 . Explosive 10 | . . . 10 . Electromagnetic . | . . . . . Robot Hit Streak 12 | 10 11 12 4 . Robot Miss Streak 3 | 2 3 3 3 . Penetration Max . | . . . . . Secondary Targets 6 | . 2 4 . . Max Gunslinging Chain 1 | . 1 1 . . Shots Hit Robots 166 | 18 50 67 17 14 Core Hits 93 | 6 24 27 30 6 Critical Kills . | . . . . . Critical Parts Destroyed . | . . . . . Critical Strikes 12 | 1 3 6 . 2 Burn 10 | 1 3 6 . . Sever 2 | . . . . 2 Melee Attacks 93 | . . . . 93 Impact . | . . . . . Slashing 93 | . . . . 93 Piercing . | . . . . . Sneak Attacks 1 | . . . . 1 Combat Hostiles . | . . . . . Follow-up Attacks . | . . . . . Damage Inflicted 2829 | 188 578 781 719 563 Guns 1666 | 188 578 781 119 . Cannons . | . . . . . Explosions 600 | . . . 600 . Melee 563 | . . . . 563 Ramming . | . . . . . Kinetic 127 | 53 28 . 46 . Thermal 1586 | 135 550 781 120 . Explosive 553 | . . . 553 . Electromagnetic . | . . . . . Impact . | . . . . . Slashing 563 | . . . . 563 Piercing . | . . . . . Highest Corruption 4 | . . . 4 4 Average Corruption 3 | . . . 4 3 Corruption Purged . | . . . . . Corruption Blocked . | . . . . . Effects 8 | . . . 6 2 Message Errors 2 | . . . 2 . Matter Fused 3 | . . . 1 2 Heat Flow Errors 1 | . . . 1 . Energy Discharges 1 | . . . 1 . Data Loss (minor) 1 | . . . 1 . Overload Shots . | . . . . . Overflow Damage 48 | . . . 37 11 Projectiles . | . . . . . Explosions 37 | . . . 37 . Melee 11 | . . . . 11 Knockbacks . | . . . . . Impact . | . . . . . Kinetic . | . . . . . Secondary . | . . . . . Self-Inflicted Damage 117 | . . . 117 . Shots 3 | . . . 3 . Rammed . | . . . . . Targets Rammed . | . . . . . Kicked . | . . . . . Crushed . | . . . . . Highest Temperature 176 | 52 144 . 176 8 Average Temperature 50 | 25 48 . 88 5 Received Heat Transfer 700 | . 144 402 86 68 Siege Activations . | . . . . . Robots Corrupted . | . . . . . Combat Hostiles . | . . . . . Parts Fried . | . . . . . Impact Corruptions . | . . . . . Robots Melted . | . . . . . Combat Hostiles . | . . . . . Parts Melted 15 | 1 3 10 1 . Heat Transferred 4869 | 481 1696 2467 225 . Parts Sabotaged . | . . . . . Parts Stolen . | . . . . . Parts Stripped . | . . . . . Power Chain Reactions . | . . . . . Alert | -11 -10 -9 -9 -7 ------- Run | Yrd Mat Mat Min Zio Peak Influence 363 | 20 302 363 304 . Initial 141 | . 13 42 141 . Average 207 | 6 177 232 275 . Maximum Alert Level 1 | . 1 1 1 . Low Security (%) 35 | 100 49 34 . . Level 1 64 | . 50 65 99 . Level 2 . | . . . . . Level 3 . | . . . . . Level 4 . | . . . . . Level 5 . | . . . . . High Security . | . . . . . Max Security . | . . . . . Squads Dispatched 5 | . 2 3 . . Investigation 2 | . . 2 . . Extermination . | . . . . . Reinforcement 3 | . 2 1 . . Assault . | . . . . . Garrison . | . . . . . Intercept . | . . . . . Searches Triggered . | . . . . . Construction Impeded . | . . . . . Haulers Reinforced . | . . . . . Active Scanning Responses . | . . . . . Cargo Convoy Interrupts . | . . . . . Stealth | -11 -10 -9 -9 -7 --------- Run | Yrd Mat Mat Min Zio Distress Signals 3 | . 1 1 1 . Communications Jammed . | . . . . . Distress Signals . | . . . . . Times Spotted 62 | . 14 14 18 16 Peak Tracking Total 14 | . 3 3 5 14 Tactical Retreats 7 | . 1 2 2 2 Traps | -11 -10 -9 -9 -7 ------- Run | Yrd Mat Mat Min Zio Traps Triggered . | . . . . . Indirectly . | . . . . . Trap Hack Attempts . | . . . . . Triggered . | . . . . . Disarmed . | . . . . . Reprogrammed . | . . . . . Reused . | . . . . . Traps Extracted . | . . . . . Installed . | . . . . . Triggered . | . . . . . Machines | -11 -10 -9 -9 -7 ---------- Run | Yrd Mat Mat Min Zio Machines Disabled 1 | . . . 1 . Max in Single Turn 1 | . . . 1 . Machines Repaired . | . . . . . Machines Dismantled . | . . . . . Machines Sabotaged . | . . . . . Overloaded Fab Kills . | . . . . . Hacking | -11 -10 -9 -9 -7 --------- Run | Yrd Mat Mat Min Zio Machines Accessed 3 | . 1 2 . . Terminals 3 | . 1 2 . . Fabricators . | . . . . . Repair Stations . | . . . . . Recycling Units . | . . . . . Scanalyzers . | . . . . . Garrison Access . | . . . . . Total Hacks 9 | . 3 6 . . Successful 4 | . 2 2 . . Failed 5 | . 1 4 . . Catastrophic 2 | . . 2 . . Database Lockouts . | . . . . . Manual 20 | . 3 4 . 13 Terminals 9 | . 3 6 . . Fabricators . | . . . . . Repair Stations . | . . . . . Recycling Units . | . . . . . Scanalyzers . | . . . . . Garrison Access . | . . . . . Terminal Hacks 2 | . . 2 . . Part Schematic 1 | . . 1 . . Prototype ID Bank 1 | . . 1 . . Fabricator Hacks . | . . . . . Repair Station Hacks . | . . . . . Recycling Unit Hacks . | . . . . . Scanalyzer . | . . . . . Garrison Access Hacks . | . . . . . Unauthorized Hacks 2 | . 2 . . . Terminals 2 | . 2 . . . Track 1 | . 1 . . . Skim 1 | . 1 . . . Fabricators . | . . . . . Repair Stations . | . . . . . Recycling Units . | . . . . . Scanalyzers . | . . . . . Garrison Access . | . . . . . Data Cores Recovered . | . . . . . Used . | . . . . . Hacking Detections 2 | . . 2 . . Full Trace Events 2 | . . 2 . . Feedback Events . | . . . . . Feedback Blocked . | . . . . . Robot Schematics Acquired 4 | . . . . 4 Robots Built . | . . . . . Authchips . | . . . . . Time . | . . . . . Total Robot Build Rating . | . . . . . Part Schematics Acquired 13 | . . 1 . 12 Parts Built . | . . . . . Authchips . | . . . . . Time . | . . . . . Total Part Build Rating . | . . . . . Parts Repaired . | . . . . . Time . | . . . . . Parts Recycled . | . . . . . Recycled Matter . | . . . . . Retrieved Matter . | . . . . . Retrieved Components . | . . . . . Parts Scanalyzed . | . . . . . Part Schematics Acquired . | . . . . . Parts Damaged . | . . . . . Bothacking | -11 -10 -9 -9 -7 ------------ Run | Yrd Mat Mat Min Zio Used RIF Installer . | . . . . . Robots Hacked . | . . . . . Non-combat . | . . . . . Combat . | . . . . . Robot Hacks Applied . | . . . . . Relay Couplers Released . | . . . . . Fabnet Peak Effective % . | . . . . . Robots Rewired . | . . . . . Allies Hacked . | . . . . . Hacks Repelled . | . . . . . Allies | -11 -10 -9 -9 -7 -------- Run | Yrd Mat Mat Min Zio Total Allies 4 | . . . . 4 Largest Group 4 | . . . . 4 Highest-Rated Group 156 | . . . . 156 Highest-Rated Ally 40 | . . . . 40 Total Orders . | . . . . . Ally Attacks . | . . . . . Total Damage . | . . . . . Kills . | . . . . . Allies Corrupted 1 | . . . . 1 Allies Melted . | . . . . . Intel | -11 -10 -9 -9 -7 ------- Run | Yrd Mat Mat Min Zio Robot Analysis Total . | . . . . . Derelict Logs Recovered 4 | . . . 2 2 Drone Launches . | . . . . . Drone Recoveries . | . . . . . Exploration | -11 -10 -9 -9 -7 ------------- Run | Yrd Mat Mat Min Zio Turns Passed 4863 | 104 421 382 350 3606 Spaces Moved 2537 | 26 182 128 194 2007 Core . | . . . . . Treads 320 | 26 182 112 . . Legs 3 | . . . . 3 Wheels 95 | . . 16 79 . Hover 2119 | . . . 115 2004 Flight . | . . . . . Fastest Speed 69 | 160 160 115 125 69 Average Speed 154 | 160 160 173 144 153 Slowest Speed 240 | 160 160 240 235 157 Overloaded Moves . | . . . . . Propulsion Burnouts . | . . . . . Robots Hopped . | . . . . . Cave-ins Triggered 1 | . . . 1 . Exploration Rate (%) 39 | 3 30 19 53 92 Regions Visited 4 Branch Regions 2 Pre-discovered Areas 3 | . . . 1 2 Known Exits Taken . | . . . . . Unknown Exits Taken 4 | 1 1 1 1 . Scrap Searched 3 | . . . 1 2 Spaces Dug 16 | . . . . 16 Terrain Destroyed 97 | . . . 81 16 Melee 16 | . . . . 16 Projectile . | . . . . . AOE 81 | . . . 81 . Terrain Rammed . | . . . . . Walls Destroyed . | . . . . . Machines Disabled . | . . . . . Actions | -11 -10 -9 -9 -7 --------- Run | Yrd Mat Mat Min Zio Total 3120 | 64 234 197 231 2394 Wait 306 | 23 1 7 2 273 Move 2533 | 25 181 127 193 2007 Hop . | . . . . . Pick Up 10 | . 3 1 4 2 Fast Attach 14 | 1 1 3 3 6 Attach 8 | . 1 3 3 1 Detach 2 | . . . . 2 Swap 16 | 2 5 5 2 2 Drop 17 | . 3 4 2 8 Fire 121 | 13 39 47 22 . Melee 93 | . . . . 93 Ram . | . . . . . Kick . | . . . . . Crush . | . . . . . Escape Stasis . | . . . . . Rewire . | . . . . . Trap . | . . . . . Miscellaneous . | . . . . . Route ------- -11/Scrapyard -10/Materials -9/Materials -9/Mines (discovered 2 exits: [*Mat] / *Zio) -7/Zion (discovered 1 exit: [Dee]) History --------- Turn | Location | Event 16 | -11/Scrapyard | Discovered new exit (range 3) 105 | -11/Scrapyard | Entered Materials 305 | -10/Materials | Build established: Mutant 307 | -10/Materials | Discovered new exit (range 3) 526 | -10/Materials | Entered another Materials area 526 | -9/Materials | Evolved 2 slots: Propulsion x1, Utility x1 754 | -9/Materials | Build established: Scavenger-Mutant 818 | -9/Materials | Lost 3 parts (1p1n1w) 901 | -9/Materials | Discovered new exit (range 7) 908 | -9/Materials | Entered Mines 909 | -9/Mines | Assembled infested the area 999 | -9/Mines | Learned location of Storage (-7) 1053 | -9/Mines | Crushed by falling debris 1053 | -9/Mines | Core integrity fell below 50% 1079 | -9/Mines | Learned Materials emergency access door positions 1119 | -9/Mines | Discovered new exit (range 7) 1233 | -9/Mines | A Derelict revealed a hidden shortcut to a safe place 1258 | -9/Mines | Entered Zion 1336 | -7/Zion | System corruption cleaned by Quarantine Array 1568 | -7/Zion | Build established: Mutant 1603 | -7/Zion | Learned 4 Factory zone layouts 1807 | -7/Zion | Met Imprinter 1832 | -7/Zion | Imprinted 1834 | -7/Zion | Declared Zion's savior 2282 | -7/Zion | Discovered new exit (range 10) 2615 | -7/Zion | Warned about damaging Zion machinery 2630 | -7/Zion | Visited the Megawrench Repair Shop 2633 | -7/Zion | Megawrench repaired 6 parts 3261 | -7/Zion | Learned location of Data Miner (-6) 3311 | -7/Zion | Given A8's code to call for help 3351 | -7/Zion | Received a visual enhancement algorithm 3890 | -7/Zion | Found Prototype Device 3890 | -7/Zion | Identified Mobile Refinery Mk. CCLXVII 4758 | -7/Zion | Murdered Imprinter 4759 | -7/Zion | Attacked by Zionites 4761 | -7/Zion | Extracted access codes from Imprinter's data core 4821 | -7/Zion | Opened final containment barrier to the Deep Caves 4827 | -7/Zion | Core integrity fell below 20% 4864 | -7/Zion | Destroyed by RS-P0U(M) with Battle Cannon Last Messages --------------- 04826_ NV-C6Y(z) Imp. Carbon-fiber Leg severed. 04828_ NV-C6Y(z) destroyed. 04833_ Destroyed Mak. Sword. 04834_ IS-D1C(z) pulls a Mak. Laser out of the Twisted Machinery. 04838_ Beamcaster severed. 04840_ Cmb. Airjet destroyed. 04841_ 9G-NS1(z) Imp. Carbon-fiber Leg severed. 04843_ 9G-NS1(z) destroyed. 04846_ IS-D1C(z) destroyed. 04849_ Acquired Mak. Leg. 04852_ KX-1L0(z) destroyed. 04853_ Acquired 14 matter. 04854_ Imp. Light Armor Plating destroyed. 04857_ 5T-3OO(z) destroyed. 04862_ Mak. Hover Unit destroyed. 04862_ Knocked back. 04863_ Phasing Sabre destroyed. 04863_ System corrupted by crushing effect (+1). 04863_ Knocked back. Map ----- +----------------------------------------------------+ | ?????????????????????????????????????????? | | ?????????????????????????????????????????? | | ?????????????????????????????????????????? | | ?????????????????????????????????????????? | | ???????????????????????????????????#?????? | | ??????????????????????????????????#??????? | | ????????????????????????????????????#????? | | ?????????????????????????????########????# | | ????????????????????????????##########???# | | ????????????????????????????###!#"!###???? | | ????????????????????????????##!!! !!##???? | | ???????????????????????????####!!!!!##???? | | ???????????????????????????#####!!"####?#? | | ??????????????????????????#?###" # ####### | | ???????????????##???#?#??#??##"# " "####"# | | ?????#???#?????#??##???##???## # # ###" | | ?????????????#??#???????#?#?## """ ""# | | ???#?????????????????#?????###""""" "" | | ????#???????#?????#?#?##?#####"" " | | ????????#?###?????#?##########" | | ???????#??##################""" | | ?????#?#??########"#"#"""####" | | ??#????######"# """""""""#"""" "" | | ????????####" #########"""##"" """ " | | ???????#####" #%=/[%=MzzX"##"" " "" """ | | ????#??### " ##X%@z/[X# ""#"" """""""" | | ???#?#??## ############ """ """ ""#""""# | | ???????### # """"#"#" | | ????????## # ? " " " """""### | | ?#??????## # ####### """"""" " "#"" | | ???#???##### < # """"""""" % """" | | ????#??### # # ###"""""#"#""" """" | | ??????###" ########""#######" " """ | | ???????#### = "##########"" """ """ | | #?????#########"##########"" """"" "" | | ?????????##############"%""" ""#""" " | | ????#???#???##########"" "" """""" | | ???#?#???#????????#?## ! "#""" | | ???????#??#??#???#?###" "# """" | | ???????????##?????#####"""## """ """ | | ????????????#????#??####""#" """"""""" | | ????????#????????????#######" """""""" | | ???#??????????????#?#######"" """"##" | | ?????????????????#???##??##"" " """"" | | ?????????????????????????##""" """" | | ???????#???????????????#####"" """ | | ??????????????????#?????#####" | | ??????????????????????#?####"" | | ???????????????#?????#??##""" | | ????????????????#?##?#####""" | +----------------------------------------------------+ Best States ------------- Heat Dissipation 52 Energy Generation 14 Energy Capacity 265 Matter Stores 300 Matter Capacity 300 Sight Range 16 Terrain Scan Range 14 Terrain Scan Density 10 Armor Coverage 150 Evasion (%) 51 Recoil Reduction 3 Item Schematics ----------------- Hvy. Assault Rifle | -9/Materials | Hacked Imp. Corruption Screen | -7/Zion | Archive Shock Absorption System | -7/Zion | Archive Imp. Cryofiber Web | -7/Zion | Archive Hpw. Shock Rifle | -7/Zion | Archive Coolant Injector | -7/Zion | Archive Proton Cannon | -7/Zion | Archive Adv. Field Recycling Unit | -7/Zion | Archive Gauss Cannon | -7/Zion | Archive Fusion Compressor | -7/Zion | Archive Xenon Bombardment Thruster | -7/Zion | Archive Imp. Reaction Control System | -7/Zion | Archive Microactuators | -7/Zion | Archive Robot Schematics ------------------ K-01 Serf | -7/Zion | Archive S-27 Virus | -7/Zion | Archive L-41 Fighter | -7/Zion | Archive C-57 Dissector | -7/Zion | Archive Fabricated ------------ Nothing Alien Tech Used ----------------- None Achievements -------------- None Challenges ------------ None Game ------ Seed MicrowarpCobblerMonowheel Manual? 0 Play Time 00:41:22 Cumulative 57.1 hours Start 2024.11.15 @ 11:53:31 End 2024.11.15 @ 12:45:01 Sessions 1 Manual Loads 0 Difficulty Rogue Special Mode None Game No. 38 Rogue 38 Adventurer 0 Explorer 0 Win Type - Total 0 Types 0/0/0/0/0/0/0/0/0 Lore% 38 Gallery% 40 Achievement% 32 Wizard Run 0 Options --------- Layout 2 ASCII 0 Keyboard 0 Movement Mouse Keybinds 0 Fullscreen 1 Font 24/Smallcaps Map View 50x44 Zoom Use 0% Tactical HUD 1 Map Filters NONE Filters NONE Steam 1 RUN: 68234679-012e-4a5b-be44-e8069baac4d5